[Event "FRA-ch Teams Top 16-B 2022"]
[Site "Chartres"]
[Date "2022.06.13"]
[Round "5.12"]
[White "Boukhris-Ferre, Yacine"]
[Black "Burri, Quentin"]
[Result "0-1"]
[ECO "B51"]
[WhiteElo "2183"]
[BlackElo "2401"]
[Annotator "TA"]
[PlyCount "92"]
[EventDate "2022.06.09"]
[EventType "team-tourn"]
[EventCountry "FRA"]
[SourceTitle "playchess.com"]
[Source "ChessBase"]
[SourceQuality "1"]
[TimeControl "40/5400+30:1800+30"]

{[%evp 9,92,17,6,10,10,15,49,0,-4,-17,0,-22,4,11,12,12,12,0,0,-4,0,0,8,-9,-8,-3,-4,-10,-4,-9,-10,-9,-8,-13,-6,-15,-5,-23,-23,-17,-14,-26,-22,-22,-22,-22,-22,-22,-27,-33,0,0,0,-26,0,-25,-10,-10,0,0,0,-54,-54,-185,-202,-214,-175,-159,0,-74,0,-100,-91,-425,239,239,233,-748,-748,-6187,-5437,-5389,-5103,-29992,-29993]} 1. e4 {[%emt 0:01:27]} c5 {[%emt 0:00:09]} 2. Nf3 {[%emt 0:00:04]} d6 {[%emt 0:00:14]} 3. Bb5+ {[%emt 0:00:13]} Nd7 {[%emt 0:00:25]} 4. d4 {[%emt 0:02:03]} cxd4 {[%emt 0:00:43]} 5. Nxd4 {[%emt 0:00:15]} Ngf6 {[%emt 0:01:39]} 6. O-O {[%emt 0:00:23] B51: Sicilian: Moscow Variation (3 Bb5+) without 3...Bd7.} a6 {[%emt 0:04:11]} 7. Bd3 {[%emt 0:00:59]} g6 {[%emt 0:01:30] 7...Nc5 is the modern continuation.} 8. Nc3 {[%emt 0:02:13]} ({White should play} 8. c4 $14) 8... Bg7 $11 {[%emt 0:00:51]} 9. h3 {[%emt 0:02:15]} O-O {[%emt 0:13:31]} 10. Be3 {[%emt 0:00:56]} e6 {[%emt 0:02:48] [#]} 11. a4 $146 {[%emt 0:05:44]} ({Predecessor:} 11. Rc1 Ne5 12. Be2 d5 13. f4 Nc4 14. Bxc4 dxc4 15. Qf3 b5 16. Nc6 Qc7 17. e5 {1-0 (52) Kazakov,N (1862)-Tanaev,V (2117) Tula 2005}) 11... Qc7 {[%emt 0:02:22]} 12. a5 {[%emt 0:02:49]} Nc5 {[%emt 0:04:54]} 13. b4 {[%emt 0:10:08]} Nxd3 {[%emt 0:03:24]} 14. Qxd3 {[%emt 0:00:33]} Bd7 {[%emt 0:00:42]} 15. Nde2 {[%emt 0:15:03]} d5 {[%emt 0:10:48]} 16. exd5 {[%emt 0:06:21]} Nxd5 {[%emt 0:02:12]} 17. Nxd5 {[%emt 0:00:55]} exd5 {[%emt 0:00:05]} 18. Nd4 {[%emt 0:08:15] Prevents Bb5.} Rac8 {[%emt 0:01:32]} 19. Rfd1 {[%emt 0:06:17]} Qc4 {[%emt 0:06:41]} 20. Ra3 {[%emt 0:09:48][%cal Ba1a3,Ba3b3,Bb3b7][%mdl 32]} Qxb4 {[%emt 0:11:31]} 21. Rb3 {[%emt 0:00:09]} Qxa5 {[%emt 0:00:08] aiming for ...Qc7.} 22. Rxb7 {[%emt 0:00:11]} Qa4 {[%emt 0:00:27]} 23. Rb6 {[%emt 0:10:35]} Rc4 {[%emt 0:07:37]} 24. Rd6 {[%emt 0:03:23]} Bc6 {[%emt 0:03:32]} (24... Bc8 {feels hotter.} 25. Rxd5 Bb7 26. Ra5 Qxa5 27. Qxc4 Rc8) 25. Nxc6 {[%emt 0:02:59]} (25. Rxc6 {keeps more tension.} Rxd4 26. Bxd4 Qxc6 27. Bxg7 Kxg7 28. Ra1) 25... Rxc6 {[%emt 0:00:06]} 26. Qxd5 {[%emt 0:01:24]} Rxd6 {[%emt 0:01:16]} 27. Qxd6 {[%emt 0:00:01]} Qxc2 {[%emt 0:00:14]} 28. Rc1 {[%emt 0:00:17]} Qa4 {[%emt 0:00:47]} 29. g3 {[%emt 0:01:10]} Qb5 {[%emt 0:00:49]} 30. Rc5 {[%emt 0:02:16]} Qb1+ {[%emt 0:01:48]} 31. Rc1 {[%emt 0:00:09]} Qa2 {[%emt 0:02:44]} 32. h4 {[%emt 0:01:16]} h5 {[%emt 0:00:59]} 33. Rc6 {[%emt 0:02:21]} a5 {[%emt 0:00:42]} 34. Ra6 {[%emt 0:00:07]} Rc8 {[%emt 0:05:28]} 35. Qb6 {[%emt 0:03:48] Prevents Qb1+.} (35. Qd7 $11 Rb8 36. Kh2) 35... Bc3 $1 $15 {[%emt 0:00:42]} 36. Ra7 {[%emt 0:01:01]} (36. Qb5 $15) 36... Qd5 $19 {[%emt 0:01:28][%cal Oa5a4]} 37. Kh2 {[%emt 0:00:38]} Kg7 {[%emt 0:01:59]} 38. Kg1 {[%emt 0:00:15]} Rc6 $2 {[%emt 0:01:39]} (38... a4 $17 {Strongly threatening ...Kg8.} 39. Kh2 Rc4) 39. Qb7 {[%emt 0:00:41]} (39. Qb8 $1 $11 {keeps the balance.} Bd2 40. Bxd2 Qxd2 41. Rxf7+ (41. Qe5+ Rf6 $11) 41... Kxf7 42. Qb7+ Rc7 43. Qxc7+ Ke6 44. Qc6+ Kf5 45. Kg2) 39... Be5 {[%emt 0:00:44]} (39... Qe6 $1 $17) 40. Kh2 {[%emt 0:00:31]} (40. Qe7 $1 $11 {was the only way to keep the balance.}) 40... Qf3 $1 $17 {[%emt 0:01:28][%cal Oe5g3] Really sharp! Black is more active.} 41. Bc5 $2 {[%emt 0:04:47][%mdl 8192]} (41. Kg1 $17 {nothing else works.} Bxg3 42. Bd4+ Kh6 43. Be3+ Kg7 44. Bd4+ Kh6 45. Be3+ Kh7 46. Qxf7+ Qxf7 47. Rxf7+ Kg8 48. Ra7 Bxh4 49. Kg2) 41... Bc7 $4 {[%emt 0:23:23][%mdl 8192]} (41... Qf6 $19 {and all is fine.} 42. Be3 Rc7) 42. Qb2+ $1 $18 {[%emt 0:15:27][%mdl 1024] White has strong compensation.} Kh7 {[%emt 0:00:17] [#]} (42... Qf6 $2 43. Bd4 Bb6 44. Bxf6+ $18) 43. Bf8 {[%emt 0:02:09][%mdl 8192] [#]} (43. Ra8 $1 $18 Rf6 44. Rf8) 43... Be5 $1 $19 {[%emt 0:01:49][%mdl 512]} 44. Qd2 {[%emt 0:02:50]} (44. Qa2 Rc4) 44... Rc4 {[%emt 0:01:37] ( -> ...Rxh4+)} 45. Be7 {[%emt 0:01:47]} Rd4 {[%emt 0:00:29]} 46. Qe3 {[%emt 0:02:05] [#]} Bxg3+ $1 {[%emt 0:00:05][%mdl 512] Weighted Error Value: White=0.60/Black=0.45} 0-1

[Event "FRA-ch Teams Top 16-B 2022"]
[Site "Chartres"]
[Date "2022.06.13"]
[Round "5.13"]
[White "Terrieux, Kevin"]
[Black "Domenech, Vianney"]
[Result "1-0"]
[ECO "E60"]
[WhiteElo "2448"]
[BlackElo "2266"]
[Annotator "TA"]
[PlyCount "61"]
[EventDate "2022.06.09"]
[EventType "team-tourn"]
[EventCountry "FRA"]
[SourceTitle "playchess.com"]
[Source "ChessBase"]
[SourceQuality "1"]
[TimeControl "40/5400+30:1800+30"]

{[%evp 9,61,36,35,29,39,46,39,23,19,3,18,0,7,-35,-33,-50,4,-50,-46,-25,-34,-131,-138,-299,-292,-270,-100,-140,-118,-182,-174,-181,-166,-425,0,0,13,14,94,98,82,0,0,-377,-377,-576,27,27,27,-97,58,46,5213,297]} 1. d4 {[%emt 0:00:15]} Nf6 {[%emt 0:00:06]} 2. c4 {[%emt 0:00:46]} g6 {[%emt 0:00:15]} 3. h4 {[%emt 0:03:13]} Bg7 {[%emt 0:01:58]} 4. Nc3 {[%emt 0:00:21]} d6 {[%emt 0:01:04]} 5. e4 {[%emt 0:00:49]} a6 {[%emt 0:02:23]} 6. Be2 {[%emt 0:09:36] E60: King's Indian: Unusual lines and Fianchetto Variation without Nc3.} O-O {[%emt 0:11:24]} 7. h5 {[%emt 0:01:18]} c5 {[%emt 0:01:01] [#]} 8. hxg6 $146 {[%emt 0:04:06] White is slightly better.} ({Predecessor:} 8. dxc5 dxc5 9. Qxd8 Rxd8 10. h6 Bh8 11. e5 Nfd7 12. f4 Nc6 13. Nf3 Nf8 14. Be3 {1-0 (30) Matlakov,M (2685)-Silich,Y (2330) Chess.com INT 2020}) 8... fxg6 {[%emt 0:03:23]} 9. d5 {[%emt 0:15:29]} b5 {[%emt 0:00:52]} 10. e5 {[%emt 0:01:15]} dxe5 {[%emt 0:04:25]} 11. cxb5 {[%emt 0:00:10]} axb5 {[%emt 0:01:07]} 12. Bxb5 {[%emt 0:00:29]} e4 {[%emt 0:15:57] Against Nf3} (12... Ba6 $15) 13. Nh3 {[%emt 0:03:24]} ({Better is} 13. Nge2 $11) 13... Nbd7 $15 {[%emt 0:05:31][%cal Bb8d7,Bd7e5,Be5c6,Bc6b4][%mdl 32]} 14. Ng5 {[%emt 0:31:14] Strongly threatening Ne6.} Ne5 {[%emt 0:02:19] White must now prevent ...Bg4.} 15. Be2 {[%emt 0:11:23]} (15. Ngxe4 $2 Nxe4 16. Nxe4 Qa5+ 17. Nc3 Ng4 $19) ({White should play} 15. Bf4 $15 Qd6 16. Bg3 (16. Ngxe4 Nxe4 17. Nxe4 Qb8 $17)) 15... Bf5 $17 {[%emt 0:11:49]} 16. Ne6 $2 {[%emt 0:06:51]} (16. O-O $17) 16... Bxe6 $19 {[%emt 0:01:44]} 17. dxe6 {[%emt 0:00:03]} Qb6 {[%emt 0:05:12]} (17... Nd3+ $19 18. Bxd3 exd3) 18. Qc2 {[%emt 0:01:17]} Nc6 {[%emt 0:05:33]} (18... Qxe6 19. Nxe4 Nxe4 20. Qxe4 $11) 19. Nxe4 {[%emt 0:02:29]} (19. Qb1 $17) 19... Qb4+ {[%emt 0:02:01]} (19... Nxe4 20. Qxe4 Bxb2 21. Qh4 $17) 20. Nc3 {[%emt 0:00:08] [#]} Ne4 $1 {[%emt 0:05:07][%mdl 512]} 21. Rh4 $2 {[%emt 0:01:03]} (21. a3 {was worth a try.} Bxc3+ 22. bxc3) (21. O-O Nxf2) 21... Nxc3 $2 {[%emt 0:11:19]} 22. Rxb4 $11 {[%emt 0:01:04]} Nxb4 {[%emt 0:00:02] Pair of Knights!} 23. Qb3 {[%emt 0:01:35]} Rfb8 {[%emt 0:01:10]} 24. Kf1 $1 $16 {[%emt 0:00:31]} (24. bxc3 $2 Nd3+ $1 {[%mdl 512]} 25. Bxd3 Rxb3 $19) 24... Nd3 {[%emt 0:03:34] [#]} 25. Qc4 {[%emt 0:01:51]} (25. Qxb8+ $1 $16 Rxb8 26. Bxd3) 25... Nxb2 $11 {[%emt 0:01:00]} 26. Bxb2 {[%emt 0:01:34][%mdl 8192]} (26. Qxc5 $11 {and White has nothing to worry.} Nxe2 27. Qxe7 (27. Kxe2 Na4 $17)) 26... Rxb2 $19 {[%emt 0:00:04]} 27. Bf3 {[%emt 0:00:13]} (27. Qxc5 {might work better.} Nxe2 28. Qxe7) 27... Ra5 $2 {[%emt 0:03:40]} (27... Raxa2 $19 28. Rc1 Rc2) 28. Rc1 $36 {[%mdl 2048] White fights for an advantage.} Raxa2 {[%emt 0:00:00] aiming for ...Rc2.} 29. Ke1 {[#]} (29. Qxc5 $11 Rc2 30. Qc8+ Bf8 31. Rd1 $1) 29... Rxf2 $2 {[%emt 0:00:00]} (29... Bd4 $1 $17 {[%cal Rd4f2]} 30. Rxc3 Bxc3+ 31. Qxc3 Rb1+ 32. Bd1 Raa1) 30. Qxc5 $14 {[%emt 0:02:27] Hoping for Qc8+. Dancing on a razor blade.} ({Reject} 30. Rxc3 Bxc3+ 31. Qxc3 Rfc2 $11) 30... Rfb2 $2 {[%emt 0:00:21][%mdl 8192]} (30... Bf6 $14) 31. Qc8+ $2 {[%emt 0:00:00] Weighted Error Value: White=0.87/Black=0.74} (31. Qxe7 h5 32. Qf7+ Kh7 33. e7) 1-0

[Event "FRA-ch Teams Top 16-B 2022"]
[Site "Chartres"]
[Date "2022.06.13"]
[Round "5.14"]
[White "Louis, Thibault"]
[Black "Papadiamandis, Elliot"]
[Result "0-1"]
[ECO "B70"]
[WhiteElo "2154"]
[BlackElo "2373"]
[Annotator "TA"]
[PlyCount "92"]
[EventDate "2022.06.09"]
[EventType "team-tourn"]
[EventCountry "FRA"]
[SourceTitle "playchess.com"]
[Source "ChessBase"]
[SourceQuality "1"]
[TimeControl "40/5400+30:1800+30"]

{[%evp 12,92,28,19,28,0,0,0,0,0,0,0,0,-40,22,33,24,39,59,0,0,0,0,0,0,0,4,7,0,3,16,0,18,33,28,28,33,24,27,0,0,0,58,-8,-6,-31,-31,-24,-16,-31,-31,-106,-110,-88,-66,-82,-59,-51,-35,-295,-291,-238,0,-170,-162,-256,-248,-243,-61,-60,-47,-54,-47,-262,-259,-241,-253,-406,-408,-1764,-1487,-29994,-29995]} 1. e4 {[%emt 0:00:35]} c5 {[%emt 0:00:17]} 2. Nf3 {[%emt 0:01:46]} d6 {[%emt 0:01:01]} 3. d4 {[%emt 0:00:38]} cxd4 {[%emt 0:00:22]} 4. Nxd4 {[%emt 0:00:20]} Nf6 {[%emt 0:00:45]} 5. Bb5+ {[%emt 0:00:44]} Nbd7 {[%emt 0:01:21]} 6. O-O {[%emt 0:00:20]} g6 {[%emt 0:09:34]} 7. Nc3 {[%emt 0:12:28]} Bg7 {[%emt 0:00:37] B70: Sicilian Dragon: 6 g3 and 6 Be2 (without a later Be3).} 8. h3 {[%emt 0:09:44]} O-O {[%emt 0:02:09]} 9. Re1 {[%emt 0:05:05]} a6 {[%emt 0:03:17] The position is equal.} 10. Bf1 {[%emt 0:12:30]} Re8 {[%emt 0:06:18]} 11. a4 {[%emt 0:01:20]} b6 {[%emt 0:05:44] [#]} 12. g4 $146 {[%emt 0:06:21]} ({Predecessor:} 12. f4 Bb7 13. Nf3 Qc7 14. Kh1 e6 15. Bd3 Rad8 16. Qe2 Nh5 17. Qf2 Bxc3 18. bxc3 Qxc3 {0-1 (63) Racz,Z (2252)-Kahn,E (2321) Hungary 2005}) 12... h6 {[%emt 0:10:52]} (12... Bb7 $15) 13. Bg2 $11 {[%emt 0:08:15]} e5 {[%emt 0:00:28]} 14. Nb3 {[%emt 0:04:34]} Qc7 {[%emt 0:01:47]} 15. Nd2 {[%emt 0:06:04]} ({White should play} 15. Be3 $14) 15... Bb7 {[%emt 0:03:50]} 16. Nf1 {[%emt 0:00:12]} Nc5 {[%emt 0:03:20]} 17. Ne3 {[%emt 0:08:44]} Ne6 {[%emt 0:12:34]} ({Don't play} 17... Bxe4 18. Nxe4 Ncxe4 19. Bxe4 Nxe4 20. Nd5 $16) ({But not} 17... Nfxe4 18. Ned5 Nxc3 19. Nxc7 $16) 18. Ned5 {[%emt 0:05:19]} Nxd5 {[%emt 0:02:30]} 19. Nxd5 {[%emt 0:00:32]} Bxd5 {[%emt 0:00:29]} 20. exd5 {[%emt 0:03:24]} Nc5 {[%emt 0:05:29]} 21. Ra3 {[%emt 0:06:19]} b5 {[%emt 0:06:22]} 22. axb5 {[%emt 0:00:24]} axb5 {[%emt 0:00:02]} 23. Rxa8 {[%emt 0:02:04]} Rxa8 {[%emt 0:00:02]} 24. Qe2 {[%emt 0:01:31]} Rb8 {[%emt 0:01:26]} 25. Be3 {[%emt 0:00:28]} Na4 {[%emt 0:01:03]} 26. b3 {[%emt 0:01:47]} Nc5 {[%emt 0:04:00]} (26... Nc3 $11 27. Qd3 Rc8) 27. Bxc5 {[%emt 0:01:26]} (27. Ra1 $14) 27... Qxc5 {[%emt 0:00:10]} 28. Qd3 {[%emt 0:00:13]} Ra8 {[%emt 0:02:45]} 29. Bf1 {[%emt 0:00:15]} Ra5 {[%emt 0:07:52]} 30. Rd1 {[%emt 0:00:56]} Bf6 {[%emt 0:00:32]} 31. Rd2 {[%emt 0:01:07]} ({Better is} 31. Bg2 $15) 31... Bg5 $17 {[%emt 0:00:57]} 32. Re2 {[%emt 0:00:14]} Kg7 {[%emt 0:02:04]} (32... Ra1 {is more complex.} 33. Kg2 Kg7 34. c3 Qa3) 33. Re1 {[%emt 0:00:38] Prevents Ra1.} b4 {[%emt 0:01:49]} 34. Bg2 $1 {[%emt 0:00:36]} Bh4 {[%emt 0:00:56]} 35. Re2 {[%emt 0:00:20][%mdl 8192]} (35. Rf1 $1 $15) 35... Ra1+ $19 {[%emt 0:00:48]} 36. Bf1 {[%emt 0:00:08]} Ra5 {[%emt 0:01:30]} 37. Bg2 $1 {[%emt 0:00:22]} Ra2 {[%emt 0:01:18]} 38. Be4 {[%emt 0:01:05]} (38. Bf3 {keeps fighting.}) 38... Ra1+ {[%emt 0:00:48]} 39. Kg2 {[%emt 0:00:09]} Qa7 {[%emt 0:00:44]} (39... Bg5 $19 {And now ...Qa5 would win.} 40. Qc4 Qa5) 40. Qe3 $15 {[%emt 0:01:00]} Qc7 {[%emt 0:01:08] [#] Threatens to win with ...Bg5.} 41. Re1 {[%emt 0:09:13]} Ra2 $36 {[%emt 0:01:21][%mdl 2048] Black has good play.} 42. Re2 $2 {[%emt 0:08:50]} (42. Rh1 $15) 42... Bg5 $19 {[%emt 0:01:13]} 43. Qd3 {[%emt 0:01:37]} Ra1 {[%emt 0:02:51] Against Re1} 44. Qc4 $2 {[%emt 0:00:21] [#]} (44. h4 {was called for.} Bxh4 45. Qd2) 44... Qa5 $1 {[%emt 0:02:19] aiming for ...Qa3.} 45. f3 {[%emt 0:11:03]} (45. Bd3 $142 Rd1 46. Re4) 45... Bh4 {[%emt 0:08:11] ( -> ...Qb6)} 46. Bd3 {[%emt 0:00:07]} Qa7 {[%emt 0:00:20] Weighted Error Value: White=0.57/Black=0.22 (precise)} 0-1

[Event "FRA-ch Teams Top 16-B 2022"]
[Site "Chartres"]
[Date "2022.06.13"]
[Round "5.15"]
[White "Riff, Jean-Noel"]
[Black "Roubert, Emile"]
[Result "1-0"]
[ECO "C78"]
[WhiteElo "2444"]
[BlackElo "2027"]
[Annotator "TA"]
[PlyCount "59"]
[EventDate "2022.06.09"]
[EventType "team-tourn"]
[EventCountry "FRA"]
[SourceTitle "playchess.com"]
[Source "ChessBase"]
[SourceQuality "1"]
[TimeControl "40/5400+30:1800+30"]

{[%evp 17,59,34,64,52,62,53,131,119,287,278,278,283,286,275,282,293,295,289,281,275,287,286,279,275,295,258,416,258,249,234,315,305,311,281,269,264,351,337,390,345,353,345,510,512]} 1. e4 {[%emt 0:00:03]} e5 {[%emt 0:00:11]} 2. Nf3 {[%emt 0:00:04]} Nc6 {[%emt 0:00:06]} 3. Bb5 {[%emt 0:00:03][%cal Bf1b5,Bb5a4,Ba4b3,Bb3a2][%mdl 32]} a6 {[%emt 0:00:15]} 4. Ba4 {[%emt 0:00:04]} Nf6 {[%emt 0:00:11]} 5. O-O {[%emt 0:00:06]} b5 {[%emt 0:00:29]} 6. Bb3 {[%emt 0:00:06]} Bb7 {[%emt 0:00:03]} 7. d3 {[%emt 0:01:05]} Bd6 {[%emt 0:01:23]} 8. a4 {[%emt 0:02:11]} O-O {[%emt 0:06:04]} 9. c3 {[%emt 0:02:07]} h6 {[%emt 0:07:49]} 10. Nh4 {[%emt 0:00:25] C78: Ruy Lopez: Archangelsk and Möller Defences.} Na5 {[%emt 0:18:08][%cal Of6e4] Threatens to win with ...Nxe4!} 11. Ba2 $1 {[%emt 0:01:17] [#]} c5 $146 {[%emt 0:02:50] Inhibits b4.} (11... Nxe4 $1 $14 12. Ng6 Nf6) ({Predecessor:} 11... Re8 12. Nf5 Bf8 13. f4 d6 14. fxe5 dxe5 15. b4 Nc6 16. Qf3 {1-0 (16) Sokolov,A (2555)-Forster,R (2270) Bern 1993}) 12. Qf3 $16 {[%emt 0:04:56] aiming for Nf5. White is clearly better.} Nxe4 $2 {[%emt 0:13:15] [#]} 13. Nf5 $1 $18 {[%emt 0:05:04]} Ng5 {[%emt 0:16:18] [#]} 14. Qg4 {[%emt 0:00:18]} Qf6 {[%emt 0:04:44]} 15. h4 {[%emt 0:01:28]} Nh7 {[%emt 0:01:45]} 16. Bxh6 $1 {[%emt 0:01:15]} g6 {[%emt 0:00:29]} 17. Nxd6 {[%emt 0:00:40] Really sharp!} Qxd6 {[%emt 0:00:16]} 18. Bxf8 {[%emt 0:02:44]} Nxf8 {[%emt 0:00:17]} 19. axb5 {[%emt 0:02:47]} axb5 {[%emt 0:00:45][%cal Oa5b3]} 20. Na3 {[%emt 0:00:07]} Qb6 {[%emt 0:04:39]} 21. Rfe1 {[%emt 0:03:21]} Re8 $2 {[%emt 0:00:57]} (21... b4 {is a better defense.}) 22. d4 {[%emt 0:03:45]} cxd4 {[%emt 0:00:32]} 23. cxd4 $40 {[%emt 0:00:01][%mdl 128] White wants a kill.} e4 {[%emt 0:00:48]} 24. d5 {[%emt 0:02:44]} b4 {[%emt 0:04:47]} 25. Nc4 {[%emt 0:00:08]} Nxc4 {[%emt 0:01:33]} 26. Bxc4 {[%emt 0:00:02]} Qd4 {[%emt 0:03:52]} 27. b3 {[%emt 0:00:46]} d6 {[%emt 0:00:06]} 28. Rad1 {[%emt 0:01:14]} Qe5 {[%emt 0:01:15]} 29. f3 {[%emt 0:01:32][%cal Re1e4]} Bc8 {[%emt 0:03:50]} (29... f5 $142) 30. Qxe4 {[%emt 1:05:07] Black did not feel at home in the position after the opening.  Weighted Error Value: White=0.14 (very precise) /Black=0.52} 1-0

[Event "FRA-ch Teams Top 16-B 2022"]
[Site "Chartres"]
[Date "2022.06.13"]
[Round "5.16"]
[White "Bourgoin, Cecile"]
[Black "Navrotescu, Andreea"]
[Result "0-1"]
[ECO "A80"]
[WhiteElo "1682"]
[BlackElo "2318"]
[Annotator "TA"]
[PlyCount "48"]
[EventDate "2022.06.09"]
[EventType "team-tourn"]
[EventCountry "FRA"]
[SourceTitle "playchess.com"]
[Source "ChessBase"]
[SourceQuality "1"]
[TimeControl "40/5400+30:1800+30"]

{[%evp 9,48,32,57,46,61,48,54,51,110,117,133,14,10,0,0,0,21,0,-10,-15,0,-18,-20,-108,-98,-93,0,-110,-48,-157,-149,-233,-235,-227,-187,-254,-237,-1789,-1779,-1494,-935]} 1. d4 {[%emt 0:00:03]} f5 {[%emt 0:00:04]} 2. Bf4 {[%emt 0:00:08]} Nf6 {[%emt 0:00:09]} 3. e3 {[%emt 0:00:19]} d6 {[%emt 0:00:59]} 4. Nc3 {[%emt 0:02:21]} g6 {[%emt 0:05:31]} 5. h4 {[%emt 0:02:16]} h6 {[%emt 0:00:27]} 6. Qf3 {[%emt 0:02:48] A80: Dutch Defence: Unusual White second moves.} Nc6 {[%emt 0:03:30]} 7. O-O-O {[%emt 0:08:19]} e6 {[%emt 0:11:45]} 8. e4 {[%emt 0:12:26] White is slightly better.} Bg7 {[%emt 0:15:34] [#]} (8... Qe7 $14) 9. e5 $146 {[%emt 0:16:21]} ({Predecessor:} 9. exf5 gxf5 10. Bc4 O-O 11. Nge2 Ne7 12. Bh2 d5 13. Bb3 a5 14. Qf4 b5 15. a4 {0-1 (37) Lenaerts,L (2268)-Bomans,A (2249) Ghent 2016}) 9... Nh5 {[%emt 0:01:36]} 10. Be3 {[%emt 0:10:21]} (10. Nh3 $16) 10... dxe5 $11 {[%emt 0:03:46]} 11. dxe5 {[%emt 0:00:34]} Qe7 {[%emt 0:00:19]} 12. Bb5 {[%emt 0:01:15]} Bd7 {[%emt 0:00:41]} 13. g4 {[%emt 0:02:14]} (13. Rxd7 {with more complications.} Qxd7 14. g4 fxg4 15. Qxg4 Qf7 16. Bxc6+ bxc6 17. Qc4) 13... fxg4 {[%emt 0:05:20]} 14. Qxg4 {[%emt 0:01:22]} Nxe5 {[%emt 0:01:23]} 15. Bxd7+ {[%emt 0:00:26]} Qxd7 {[%emt 0:00:02]} 16. Rxd7 {[%emt 0:03:54]} (16. Qb4 $11 Qc6 17. Nge2) 16... Nxg4 $17 {[%emt 0:01:33]} 17. Rxc7 {[%emt 0:00:47]} O-O {[%emt 0:00:32]} (17... Nxe3 $17 18. fxe3 Ng3 19. Rxg7 Nxh1) 18. Bc5 {[%emt 0:09:08]} (18. Nge2 $11 {keeps the balance.}) 18... Rf5 {[%emt 0:05:11]} (18... Nxf2 $17 19. Bxf2 (19. Bxf8 $2 Rxf8 20. Rxg7+ Nxg7 $19) 19... Rxf2) 19. Ne4 {[%emt 0:01:27] [#]} (19. Nge2 $15) 19... b6 $1 {[%emt 0:02:48]} 20. f3 {[%emt 0:01:17]} (20. Bb4 $17) 20... bxc5 $19 {[%emt 0:09:52]} 21. fxg4 {[%emt 0:00:21]} Rf1+ {[%emt 0:00:07]} 22. Kd2 {[%emt 0:00:38]} Nf4 {[%emt 0:00:08] White must now prevent ...Rd8+.} 23. Rxc5 $2 {[%emt 0:08:04] [#]} (23. Rd7) 23... Rd8+ {[%emt 0:00:19]} 24. Ke3 {[%emt 0:04:10]} Bd4+ {[%emt 0:00:12][%mdl 64] Skewer, Double Attack.  Weighted Error Value: White=0.90/Black=0.17 (very precise)} 0-1

[Event "FRA-ch Teams Top 16-B 2022"]
[Site "Chartres"]
[Date "2022.06.13"]
[Round "5.17"]
[White "Vernay, Clovis"]
[Black "Donchenko, Alexander"]
[Result "0-1"]
[ECO "A65"]
[WhiteElo "2523"]
[BlackElo "2599"]
[Annotator "TA"]
[PlyCount "74"]
[EventDate "2022.06.09"]
[EventType "team-tourn"]
[EventCountry "FRA"]
[SourceTitle "playchess.com"]
[Source "ChessBase"]
[SourceQuality "1"]
[TimeControl "40/5400+30:1800+30"]

{[%evp 23,74,4,25,12,2,5,25,0,4,0,20,6,27,0,14,0,63,25,102,-13,-35,-30,0,0,3,0,10,1,14,11,16,0,0,-105,-10,-8,-16,-10,0,0,0,0,0,0,0,-10,-11,-142,-141,-446,-443,-474,-437]} 1. d4 {[%emt 0:00:08]} Nf6 {[%emt 0:00:10]} 2. c4 {[%emt 0:00:08]} g6 {[%emt 0:00:09]} 3. Nc3 {[%emt 0:10:24]} Bg7 {[%emt 0:01:05]} 4. e4 {[%emt 0:00:17]} d6 {[%emt 0:00:08]} 5. f3 {[%emt 0:04:32]} O-O {[%emt 0:00:11]} 6. Bg5 {[%emt 0:00:04]} c5 {[%emt 0:01:12]} 7. d5 {[%emt 0:00:10]} h6 {[%emt 0:01:35]} 8. Be3 {[%emt 0:00:07]} e6 {[%emt 0:00:09]} 9. Qd2 {[%emt 0:00:05]} exd5 {[%emt 0:00:13]} 10. cxd5 {[%emt 0:00:05]} a6 {[%emt 0:00:12]} 11. a4 {[%emt 0:00:03]} Re8 {[%emt 0:00:14]} 12. Nge2 {[%emt 0:00:20][%cal Bg1e2,Be2c3,Bc3a4][%mdl 32]} Nbd7 {[%emt 0:03:51]} 13. Nd1 {[%emt 0:00:06] A65: Modern Benoni: 6 e4.} Ne5 {[%emt 0:01:00]} 14. Nec3 {[%emt 0:00:10]} Nh5 {[%emt 0:00:29]} 15. Be2 {[%emt 0:01:00] White has an edge.} g5 {[%emt 0:00:30]} 16. a5 {[%emt 0:11:16]} Qf6 {[%emt 0:14:10]} 17. O-O {[%emt 0:03:12]} Nf4 {[%emt 0:01:17]} 18. Na4 {[%emt 0:02:05]} (18. Bxf4 $5 gxf4 19. Na4 $11) 18... b5 {[%emt 0:00:18]} 19. axb6 {[%emt 0:09:08] [#]} Rb8 $146 {[%emt 0:00:14]} (19... Nxe2+ $11 20. Qxe2 a5) ({Predecessor:} 19... Nxe2+ 20. Qxe2 a5 21. f4 gxf4 22. Rxf4 Qg6 23. Nf2 h5 24. Ra3 Bg4 25. Nxg4 Nxg4 {½-½ (48) Shabaev,V (2164)-Reindel,O (2258) ICCF email 2020}) 20. Rb1 {[%emt 0:04:41]} (20. Bxf4 $5 gxf4 21. Kh1 $16) 20... a5 {[%emt 0:34:43]} (20... Nxe2+ $11 21. Qxe2 Qg6) 21. b3 {[%emt 0:23:34]} (21. Bxf4 $16 gxf4 22. Qxa5) 21... Nxe2+ $11 {[%emt 0:04:44]} 22. Qxe2 {[%emt 0:00:05]} Nd7 {[%emt 0:00:05]} 23. Qb5 {[%emt 0:01:19] [#] Ndb2 is the strong threat.} Qd8 {[%emt 0:01:06][%cal Rd7b6]} 24. Bd2 {[%emt 0:01:07]} Nxb6 {[%emt 0:01:42] Hoping for ...Bd7.} 25. Bxa5 {[%emt 0:01:07][%cal Ra4b6]} Qd7 {[%emt 0:06:01]} 26. Qxd7 {[%emt 0:11:29]} Nxd7 {[%emt 0:00:08]} 27. Bc7 {[%emt 0:03:48]} Ba6 $1 {[%emt 0:04:49]} ({Don't do} 27... Bd4+ 28. Nf2 $14) 28. Bxd6 {[%emt 0:03:24]} (28. Bxb8 $11 Rxb8 29. Rf2) 28... Bxf1 {[%emt 0:03:33]} (28... Bd4+ $17 29. Rf2 Rb4) 29. Kxf1 {[%emt 0:00:04]} ({Not} 29. Bxb8 $2 Bd3 30. Rb2 Rxb8 $19) 29... Rb5 {[%emt 0:00:14]} 30. Ndc3 {[%emt 0:04:39] Pair of Knights!} Rb7 {[%emt 0:03:26]} 31. Ke2 {[%emt 0:00:56]} Ra8 {[%emt 0:02:07][%cal Oc5c4]} 32. Kd3 {[%emt 0:02:24]} Bd4 {[%emt 0:01:47]} 33. Kc2 {[%emt 0:00:17]} Ra6 {[%emt 0:00:40]} 34. Be7 {[%emt 0:00:56]} f6 {[%emt 0:01:48]} 35. Ne2 {[%emt 0:00:29]} (35. b4 $1 $11 {remains equal.} Rxb4 36. Rxb4 cxb4 37. Bxb4) 35... Kf7 $17 {[%emt 0:01:15]} 36. Nxd4 $4 {[%emt 0:03:09][%mdl 8192]} (36. d6 $17 {was the crucial defense.}) 36... cxd4 $19 {[%emt 0:00:11]} 37. Bc5 {[%emt 0:01:40] [#]} Rxa4 $1 {[%emt 0:00:51][%mdl 512] Weighted Error Value: White=0.43/Black=0.16 (very precise)} 0-1